Cogmind - Beta 14 @@@ ROGUE MODE // 2024.09.29 @ 01:52:12 Player: BionicBot Result: Destroyed by 0R-LG6(R) with Subdweller Machine Gun Performance ------------- Evolutions (0) 0 Regions Visited (2) 400 Robots Destroyed (17) 85 Value Destroyed (375) 375 Prototype IDs (12) 240 Alien Tech Used (0) 0 Bonus (-88) -88 TOTAL SCORE: 1012 Bonus ------- Friendly Fire -88 Cogmind --------- Core Integrity 0/250 Matter 272/300 Energy 87/100 System Corruption 0% Temperature Cool (0) Movement Rolling (130) Ox2 Location -10/Subcaves Parts ------- > --- POWER (1) -------- (None) > --- PROPULSION (2) --- Subdweller Monowheel Subdweller Monowheel > --- UTILITY (2) ------ High-capacity Storage Unit Medium Armor Plating > --- WEAPON (2) ------- Subdweller Laser Subdweller Shrapnel Launcher > --- INVENTORY (20) --- Cooled Ion Engine Subdweller Power Source Large Matter Pod (145) Structural Scanner Medium Armor Plating Makeshift Thermal Plating Cobbler Unit Rainbow Chip Subdweller Laser Subdweller Laser Light Assault Rifle Subdweller Machine Gun Battle Cannon Battle Cannon Mace Ripper Peak State ------------ > --- POWER ------------ Cooled Ion Engine > --- PROPULSION ------- Subdweller Monowheel Subdweller Monowheel > --- UTILITY ---------- High-capacity Storage Unit Medium Armor Plating > --- WEAPON ----------- Subdweller Laser Subdweller Laser > --- INVENTORY -------- Cooled Ion Engine Subdweller Power Source Large Matter Pod Structural Scanner Medium Armor Plating Makeshift Thermal Plating Cobbler Unit Rainbow Chip Subdweller Laser Light Assault Rifle Subdweller Machine Gun Battle Cannon Battle Cannon Subdweller Shrapnel Launcher Mace Ripper [Rating: 18] Favorites ----------- Power Cooled Ion Engine Engine Cooled Ion Engine Propulsion Light Treads Treads Light Treads Wheel Subdweller Monowheel Utility High-capacity Storage Unit Device Seismic Detector Storage High-capacity Storage Unit Protection Medium Armor Plating Weapon Battle Cannon Energy Gun Subdweller Laser Ballistic Gun Assault Rifle Ballistic Cannon Battle Cannon Launcher Subdweller Shrapnel Launcher Impact Weapon Mace Build | -11 -10 -10 ------- Run | Yrd Mat Sub Slots Evolved . | . . . Power . | . . . Propulsion . | . . . Utility . | . . . Weapon . | . . . Parts Attached 46 | 7 5 34 Power 2 | 1 1 . Engine 2 | 1 1 . Core . | . . . Reactor . | . . . Propulsion 5 | 2 . 3 Treads 2 | 2 . . Leg . | . . . Wheel 3 | . . 3 Hover . | . . . Flight . | . . . Utility 12 | 2 2 8 Device 3 | 1 . 2 Storage 3 | 1 2 . Processor . | . . . Hackware . | . . . Protection 6 | . . 6 Artifact . | . . . Weapon 27 | 2 2 23 Energy Gun 3 | . . 3 Energy Cannon . | . . . Ballistic Gun 9 | 2 1 6 Ballistic Cannon 4 | . . 4 Launcher 3 | . . 3 Special Weapon . | . . . Impact Weapon 8 | . 1 7 Slashing Weapon . | . . . Piercing Weapon . | . . . Special Melee Weapon . | . . . Unidentified Prototypes 1 | . 1 . Parts Lost 7 | . . 7 Power 1 | . . 1 Propulsion 3 | . . 3 Utility 3 | . . 3 Weapon . | . . . Highest Loss Streak 3 | . . 3 To Critical Strikes . | . . . Average Slot Usage (%) 98 | . 100 98 Engine 13 | . 14 13 Treads 21 | . 28 20 Wheel 4 | . . 5 Device 8 | . 14 7 Storage 14 | . 14 14 Protection 5 | . . 6 Energy Gun 6 | . . 7 Ballistic Gun 10 | . 27 8 Ballistic Cannon 7 | . . 8 Impact Weapon 3 | . . 3 Peak Build Rating 18 | 7 11 18 Average Rating 13 | 5 8 14 On Entrance 5 | . 7 10 Naked Turns . | . . . Heaviest Build 67 | 12 52 67 Greatest Support 40 | 40 40 40 Greatest Overweight (x) 20 | 3 1 20 Average Overweight (x) 1 | . . 1 Largest Inventory Capacity 20 | 8 20 20 Average Capacity 18 | 7 12 20 Most Carried 20 | 2 10 20 Average Carried 15 | 1 7 16 Final Capacity 20 | 8 20 20 Final Carried 17 | 2 10 17 Class Distribution -------------------- 100% | Mutant Dominant Class ---------------- Mutant | -10/Materials Mutant | -10/Subcaves Resources | -11 -10 -10 ----------- Run | Yrd Mat Sub Matter Collected 1058 | 273 44 741 Remotely . | . . . Salvage Created 598 | 96 44 458 Parts 43 | 8 3 32 Haulers Intercepted 1 | . 1 . Recyclers Shooed . | . . . Parts Field Recycled . | . . . Retrieved Matter . | . . . Parts Self-Destructed 22 | . . 22 Prevented . | . . . Kills | -11 -10 -10 ------- Run | Yrd Mat Sub Combat Hostiles Destroyed 12 | . . 12 Guns 6 | . . 6 Cannons 2 | . . 2 AOE 4 | . . 4 Classes Destroyed 8 | 2 1 5 Tunneler 1 | 1 . . Hauler 1 | . 1 . Recycler 1 | 1 . . Turret 2 | . . 2 Swarmer 6 | . . 6 Artisan 2 | . . 2 Cobbler 1 | . . 1 Subdweller 6 | . . 6 Best Kill Streak 5 | 2 1 5 Combat Bots Only 3 | . . 3 Max Kills in Single Turn 2 | 1 1 2 Gunslinging . | . . . Exploded 2 | . . 2 Melee . | . . . Uniques/NPCs Destroyed . | . . . Combat | -11 -10 -10 -------- Run | Yrd Mat Sub Hostile Shots Fired 150 | . . 150 Missed 54 | . . 54 Damage Taken 1379 | . . 1379 Core 257 | . . 257 Absorbed by Shields . | . . . Core Remaining (%) 100 | 100 . . Volleys Fired 80 | 6 3 71 Largest 2 | 2 2 2 Hottest 120 | 40 40 120 Shots Fired 152 | 12 6 134 Gun 132 | 12 6 114 Cannon 15 | . . 15 Launcher 5 | . . 5 Special . | . . . Kinetic 89 | 12 6 71 Thermal 63 | . . 63 Explosive . | . . . Electromagnetic . | . . . Robot Hit Streak 11 | 2 3 11 Robot Miss Streak 4 | 2 1 4 Penetration Max . | . . . Secondary Targets 1 | . . 1 Max Gunslinging Chain 1 | . . 1 Shots Hit Robots 99 | 7 4 88 Core Hits 40 | 4 1 35 Critical Kills . | . . . Critical Parts Destroyed . | . . . Critical Strikes . | . . . Melee Attacks 34 | . 7 27 Impact 34 | . 7 27 Slashing . | . . . Piercing . | . . . Sneak Attacks . | . . . Combat Hostiles . | . . . Follow-up Attacks . | . . . Damage Inflicted 1830 | 75 47 1708 Guns 1363 | 75 47 1241 Cannons 120 | . . 120 Explosions 347 | . . 347 Melee . | . . . Ramming . | . . . Kinetic 967 | 75 47 845 Thermal 863 | . . 863 Explosive . | . . . Electromagnetic . | . . . Impact . | . . . Slashing . | . . . Piercing . | . . . Highest Corruption . | . . . Average Corruption . | . . . Corruption Purged . | . . . Corruption Blocked . | . . . Overload Shots . | . . . Overflow Damage 40 | . . 40 Projectiles 22 | . . 22 Explosions 18 | . . 18 Melee . | . . . Knockbacks 2 | . . 2 Impact . | . . . Kinetic 2 | . . 2 Secondary . | . . . Self-Inflicted Damage . | . . . Shots . | . . . Rammed . | . . . Targets Rammed . | . . . Kicked . | . . . Crushed . | . . . Highest Temperature 147 | . . 147 Average Temperature 39 | . . 39 Received Heat Transfer 342 | . . 342 Siege Activations . | . . . Robots Corrupted . | . . . Combat Hostiles . | . . . Parts Fried . | . . . Impact Corruptions . | . . . Robots Melted . | . . . Combat Hostiles . | . . . Parts Melted 3 | . . 3 Heat Transferred 1025 | . . 1025 Parts Sabotaged . | . . . Parts Stolen . | . . . Parts Stripped . | . . . Power Chain Reactions . | . . . Alert | -11 -10 -10 ------- Run | Yrd Mat Sub Peak Influence 27 | 10 27 . Initial 6 | . 6 . Average 18 | 4 20 . Maximum Alert Level . | . . . Low Security (%) 100 | 100 100 . Level 1 . | . . . Level 2 . | . . . Level 3 . | . . . Level 4 . | . . . Level 5 . | . . . High Security . | . . . Max Security . | . . . Squads Dispatched . | . . . Investigation . | . . . Extermination . | . . . Reinforcement . | . . . Assault . | . . . Garrison . | . . . Intercept . | . . . Searches Triggered . | . . . Construction Impeded . | . . . Haulers Reinforced . | . . . Active Scanning Responses . | . . . Cargo Convoy Interrupts . | . . . Stealth | -11 -10 -10 --------- Run | Yrd Mat Sub Distress Signals . | . . . Communications Jammed . | . . . Distress Signals . | . . . Times Spotted 22 | . . 22 Peak Tracking Total 5 | . . 5 Tactical Retreats 3 | . . 3 Traps | -11 -10 -10 ------- Run | Yrd Mat Sub Traps Triggered 1 | . . 1 Indirectly . | . . . Trap Hack Attempts . | . . . Triggered . | . . . Disarmed . | . . . Reprogrammed . | . . . Reused . | . . . Traps Extracted . | . . . Installed . | . . . Triggered 2 | . . 2 Machines | -11 -10 -10 ---------- Run | Yrd Mat Sub Machines Disabled 4 | . . 4 Max in Single Turn 1 | . . 1 Machines Repaired . | . . . Machines Dismantled . | . . . Machines Sabotaged . | . . . Overloaded Fab Kills . | . . . Hacking | -11 -10 -10 --------- Run | Yrd Mat Sub Machines Accessed 4 | . 1 3 Terminals 1 | . 1 . Fabricators . | . . . Repair Stations . | . . . Recycling Units . | . . . Scanalyzers . | . . . Garrison Access . | . . . Total Hacks 14 | . 3 11 Successful 12 | . 1 11 Failed 2 | . 2 . Catastrophic . | . . . Database Lockouts . | . . . Manual 1 | . 1 . Terminals 3 | . 3 . Fabricators . | . . . Repair Stations . | . . . Recycling Units . | . . . Scanalyzers . | . . . Garrison Access . | . . . Terminal Hacks 11 | . . 11 Record 9 | . . 9 Open Door 1 | . . 1 Derelict Proto ID Bank 1 | . . 1 Fabricator Hacks . | . . . Repair Station Hacks . | . . . Recycling Unit Hacks . | . . . Scanalyzer . | . . . Garrison Access Hacks . | . . . Unauthorized Hacks 1 | . 1 . Terminals 1 | . 1 . Botnet 1 | . 1 . Fabricators . | . . . Repair Stations . | . . . Recycling Units . | . . . Scanalyzers . | . . . Garrison Access . | . . . Data Cores Recovered . | . . . Used . | . . . Hacking Detections 1 | . 1 . Full Trace Events 1 | . 1 . Feedback Events . | . . . Feedback Blocked . | . . . Robot Schematics Acquired . | . . . Robots Built . | . . . Authchips . | . . . Time . | . . . Total Robot Build Rating . | . . . Part Schematics Acquired . | . . . Parts Built . | . . . Authchips . | . . . Time . | . . . Total Part Build Rating . | . . . Parts Repaired . | . . . Time . | . . . Parts Recycled . | . . . Recycled Matter . | . . . Retrieved Matter . | . . . Retrieved Components . | . . . Parts Scanalyzed . | . . . Part Schematics Acquired . | . . . Parts Damaged . | . . . Bothacking | -11 -10 -10 ------------ Run | Yrd Mat Sub Used RIF Installer . | . . . Robots Hacked . | . . . Non-combat . | . . . Combat . | . . . Robot Hacks Applied . | . . . Relay Couplers Released . | . . . Fabnet Peak Effective % . | . . . Robots Rewired . | . . . Allies Hacked . | . . . Hacks Repelled . | . . . Allies | -11 -10 -10 -------- Run | Yrd Mat Sub Total Allies . | . . . Largest Group . | . . . Highest-Rated Group . | . . . Highest-Rated Ally . | . . . Total Orders . | . . . Ally Attacks . | . . . Total Damage . | . . . Kills . | . . . Allies Corrupted . | . . . Allies Melted . | . . . Intel | -11 -10 -10 ------- Run | Yrd Mat Sub Robot Analysis Total . | . . . Derelict Logs Recovered 2 | . . 2 Drone Launches . | . . . Drone Recoveries . | . . . Exploration | -11 -10 -10 ------------- Run | Yrd Mat Sub Turns Passed 2980 | 83 427 2470 Spaces Moved 1310 | 36 208 1066 Core 11 | 9 . 2 Treads 838 | 27 208 603 Legs . | . . . Wheels 461 | . . 461 Hover . | . . . Flight . | . . . Fastest Speed 50 | 50 160 120 Average Speed 192 | 151 173 198 Slowest Speed 1050 | 200 240 1050 Overloaded Moves . | . . . Propulsion Burnouts . | . . . Robots Hopped . | . . . Cave-ins Triggered . | . . . Exploration Rate (%) 29 | 5 31 53 Regions Visited 2 Branch Regions 1 Pre-discovered Areas 1 | . . 1 Known Exits Taken . | . . . Unknown Exits Taken 2 | 1 1 . Scrap Searched 3 | . . 3 Spaces Dug 6 | . . 6 Terrain Destroyed 79 | . . 79 Melee 6 | . . 6 Projectile . | . . . AOE 73 | . . 73 Terrain Rammed . | . . . Walls Destroyed . | . . . Machines Disabled . | . . . Actions | -11 -10 -10 --------- Run | Yrd Mat Sub Total 1540 | 50 258 1232 Wait 44 | . 24 20 Move 1308 | 35 207 1066 Hop . | . . . Pick Up 22 | 2 8 12 Fast Attach 10 | 7 1 2 Attach 4 | . . 4 Detach 1 | . 1 . Swap 32 | . 4 28 Drop 5 | . 3 2 Fire 80 | 6 3 71 Melee 34 | . 7 27 Ram . | . . . Kick . | . . . Crush . | . . . Escape Stasis . | . . . Rewire . | . . . Trap . | . . . Miscellaneous . | . . . Route ------- -11/Scrapyard -10/Materials (discovered 3 exits: [*Mat] / [*Min] / *Sub) -10/Subcaves (discovered 2 exits: [*Mat] / [*Rec]) History --------- Turn | Location | Event 13 | -11/Scrapyard | Discovered new exit (range 16) 84 | -11/Scrapyard | Entered Materials 204 | -10/Materials | Discovered new exit (range 9) 317 | -10/Materials | Build established: Mutant 373 | -10/Materials | Discovered new exit (range 5) 502 | -10/Materials | Discovered new exit (range 3) 511 | -10/Materials | Entered Subcaves 663 | -10/Subcaves | Discovered new exit (range 7) 773 | -10/Subcaves | Learned location of Mines (-10) 774 | -10/Subcaves | Visited 4L-MR0's lab 807 | -10/Subcaves | Found Rainbow Chip 1216 | -10/Subcaves | A swath of the cavern ceiling suddenly collapsed 2539 | -10/Subcaves | Discovered new exit (range 14) 2659 | -10/Subcaves | Shifting Twisted Machinery released Sub. Machine Gun 2712 | -10/Subcaves | Core integrity fell below 50% 2740 | -10/Subcaves | Lost 3 parts (1n2u) 2752 | -10/Subcaves | Shifting Twisted Machinery released Scrap Shield 2971 | -10/Subcaves | A Subdweller sparked back to life 2971 | -10/Subcaves | A Subdweller sparked back to life 2971 | -10/Subcaves | A Subdweller sparked back to life 2976 | -10/Subcaves | Core integrity fell below 20% 2981 | -10/Subcaves | Destroyed by 0R-LG6(R) with Subdweller Machine Gun Last Messages --------------- 02714_ 4M-9BN(R) destroyed. 02714_ Switching to secondary target: H3-T98(R). 02720_ H3-T98(R) affixes Scrap Shield Fragment to Scrap Shield. 02720_ Sub. Optics melted. 02720_ H3-T98(R) destroyed. 02734_ Acquired Sub. Monowheel. 02737_ Acquired 46 matter. 02738_ Acquired 51 matter. 02741_ Acquired Sub. Monowheel. 02744_ Subatomizers dissect the Disposable Heat Sink. Scrap Shield falls loose from the Twisted Machinery. 02796_ Subatomizers dissect the Disposable Heat Sink. 02846_ Acquired 7 matter. 02873_ Sub. Monowheel shoots sparks and powers down. 02971_ 0R-LG6(R) creaks and sparks as it begins to move. 02971_ 7W-RHJ(R) creaks and sparks as it begins to move. 02971_ D3-ILR(R) creaks and sparks as it begins to move. 02974_ Destroyed Sub. Monowheel. 02977_ Sub. Shrapnel Launcher shoots sparks and powers down. 02977_ Cld. Ion Engine destroyed. Map ----- +----------------------------------------------------+ | ?????????????????# ## #????????????????????? | | ?????????????????# ## #????????????????????? | | ??????????????#### ### #????????????????????? | | ??????????????# ?# #????????????????????? | | ??????????????# ## #????????????????????? | | ??????????????# #????????????????????? | | ??????????????# #????????????????????? | | ??????????????## # ##????????????????????? | | ?????????????????# ###?????????????????????? | | ?????????????##### ##??????????????????????? | | ?????????????# "& ##?????????????????????? | | ?????????????# #?????????????????????? | | ?????????????# R ###????????????????????? | | ???????????? ; R # ###??????????????????? | | ???????????? ; ;;; #??????????????????? | | ?????????????;; R "##??????????????????? | | ??????????????; ;"#???????????????????? | | ??????????????# ; #???????????????????? | | ??????????????# #???????????????????? | | ??????????????# ;###???????????????????? | | ??????????????## ;;#?????????????????????? | | ???????????????## ;; ;;#?????????????????????? | | ????????????????##; ##????????????????????? | | ?????????????????#;; ;#????????????????????? | | ?????????????????# ; ;#????????????????????? | | ?????????????????### @ ;#????????????????????? | | ???????????????????## #????????????????????? | | ???????????????????##;#;#????????????????????? | | ??????????????######;##;##???????????????????? | | ??????????????# ## ## ;#???????????????????? | | ??????????????# "## # "##???????????????????? | | ??????????????## #""##"##????????????????????? | | ???????????????##"##""""#????????????????????# | | ????????????????## "#"###????????????????????# | | ?????????????????#"""#"# ???????????????????# | | ?????????????????#"###"# ???????????????????# | | ?????????????????#"""# # ???????????????????## | | ????????????????#"#"###?????????????????????#< | | ????????????????####"##?????????????????????## | | ??????????????????#"# #??????????????????????# | | ?????????????????####"#?#????????????????????# | | ?????????????????#""#"#"# #??????????# | | ??????????????????# """ #???? ##?????????# | | ???????????????##### # # ##???? #?????????? | | ??????????????## #######???? #??????????? | | ??????????????# ## ##???? #???????????? | | ??????????????# #??## #????????????? | | ??????????????## ### #????????????? | | ???????????????## #????????????? | | ???????????????# ### #????????????? | +----------------------------------------------------+ Best States ------------- Heat Dissipation 25 Energy Generation 14 Energy Capacity 280 Matter Stores 300 Matter Capacity 300 Sight Range 16 Terrain Scan Density 10 Armor Coverage 225 Evasion (%) 40 Recoil Reduction 2 Item Schematics ----------------- None Robot Schematics ------------------ None Fabricated ------------ Nothing Alien Tech Used ----------------- None Achievements -------------- None Challenges ------------ None Game ------ Seed GatlingPhaseShifter Manual? 0 Play Time 00:24:24 Cumulative 179.0 hours Start 2024.09.29 @ 01:29:44 End 2024.09.29 @ 01:52:12 Sessions 1 Manual Loads 0 Difficulty Rogue Special Mode None Game No. 141 Rogue 141 Adventurer 0 Explorer 0 Win Type - Total 8 Types 7/0/1/0/0/0/0/0/0 Lore% 48 Gallery% 60 Achievement% 57 Wizard Run 0 Options --------- Layout 0 ASCII 0 Keyboard 1 Movement Numpad Keybinds 0 Fullscreen 2 Font 18/X11 Map View 76x50 Zoom Use 0% Tactical HUD 1 Map Filters NONE Filters NONE Steam 1 RUN: 43cd3093-95f1-4ad8-b9e9-d89a94ab51d2